fUSD/lending_fUSD_20240706
["ID","MTS","AMOUNT","RATE_DAILY","PERIOD"]
[331358991,1720269790980,-1309.0,0.0005,120]
[331358992,1720269791028,-1185.0,0.0005,120]
[331358993,1720269791074,-500.0,0.0005,120]
[331358994,1720269791122,-1000000.0,0.0005,120]
[331358995,1720269791168,-503.0,0.0005,120]
[331358996,1720269791216,-2051.7,0.0005,120]
[331358997,1720269791262,-3341.61032178,0.0005,120]
[331358998,1720269791308,-219.1011969,0.0005,120]
[331358999,1720269791502,-152.92370681,0.0005,60]
[331359000,1720269791551,-150.0,0.0005,30]
[331359001,1720269791598,-150.0,0.0005,120]
[331359002,1720269791649,-1000000.0,0.0005,120]
[331359003,1720269791697,-1040.63860156,0.0005,120]
[331359004,1720269791747,-1218.55900274,0.0005,120]
[331359005,1720269791795,-805.08119421,0.0005,120]
[331359006,1720269791840,-500.52099965,0.0005,120]
[331359007,1720269791884,-505.12178051,0.0005,120]
[331359008,1720269791933,-282.19377383,0.0005,120]
[331359009,1720269791979,-887.55732882,0.0005,120]
[331359010,1720269792029,-500000.0,0.0005,30]
[331359011,1720269792075,-173.58602231,0.0005,120]
[331359012,1720269792120,-163.72840144,0.0005,120]
[331359013,1720269792166,-200.0,0.0005,120]
[331359014,1720269792213,-200.0,0.0005,120]
[331359015,1720269792260,-173.0,0.0005,120]
[331359016,1720269792306,-500000.0,0.000501,30]
[331359017,1720269792353,-150.0,0.00050147,120]
[331359018,1720269792400,-200.16065557,0.00050156,60]
[331359019,1720269792447,-200.16065557,0.00050179,60]
[331359020,1720269792493,-401.44129706,0.000502,120]
[331359021,1720269792540,-500000.0,0.000502,30]
[331359022,1720269792586,-500000.0,0.000503,30]
[331359023,1720269792635,-156.6745957,0.00050403,60]
[331359024,1720269792681,-34822.15601143,0.000505,120]
[331359025,1720269807948,-2000.0,0.000458,64]
[331359026,1720269807998,-3020.120079,0.0004581,64]
[331359027,1720269808047,-1013.34,0.00048525,30]
[331359028,1720269808097,-1013.34,0.0004962,38]
[331359029,1720269808150,-200.0,0.0005,120]
[331359030,1720269808199,-154.11166156,0.00050499,120]
[331359031,1720269808250,-965177.84398857,0.000505,120]
[331359032,1720269808299,-150.0,0.000505,30]
[331359033,1720269808348,-1600.0,0.000505,30]
[331359034,1720269808396,-300.0,0.000505,30]
[331359035,1720269808445,-166.66666666,0.00050558,60]
[331359036,1720269808497,-188.22162214,0.00050598,60]
[331359037,1720269808547,-200.16065557,0.00050649,60]
[331359038,1720269808595,-1272.98133203,0.00050684,120]
[331359039,1720269808651,-167.5,0.00050685,120]
[331359040,1720269808701,-1013.34,0.00050715,47]
[331359041,1720269808753,-151.0,0.0005074,120]
[331359042,1720269808803,-698.00526037,0.0005089,120]
[331359043,1720269808852,-150.0,0.00050927,120]
[331359044,1720269808902,-10000.0,0.00051,120]
[331359045,1720269808953,-1000000.0,0.00051,120]
[331359046,1720269809005,-1034.8759159,0.00051,120]
[331359047,1720269809057,-759.31849543,0.00051,120]
[331359048,1720269809110,-22766.9,0.00051,120]
[331359049,1720269809162,-234.0,0.00051,120]
[331359050,1720269809213,-831430.0,0.00051,30]
[331359051,1720269809264,-500000.0,0.00051,30]
[331359052,1720269809317,-150.0,0.00051041,120]
[331359053,1720269809368,-10000.0,0.000512,120]
[331359054,1720269809420,-167.5,0.00051397,120]
[331359055,1720269809473,-150.95346761,0.00051481,60]
[331359056,1720269809524,-5278.0,0.000515,120]
[331359057,1720269809576,-10000.0,0.000515,120]
[331359058,1720269809629,-1000000.0,0.000515,120]
[331359059,1720269809681,-156.67459574,0.00051624,60]
[331359060,1720269809732,-238.38659156,0.00051739,60]
[331359061,1720269809780,-200.16065557,0.00051784,60]
[331359062,1720269811116,-1013.34,0.0005181,56]
[331359063,1720269811165,-161.25571318,0.00051944,60]
[331359064,1720269811215,-50000.0,0.00052,52]
[331359065,1720269811265,-1000000.0,0.00052,120]
[331359066,1720269811313,-577622.00329911,0.00052,120]
[331359067,1720269815580,-655.165972,0.00044,57]
[331359068,1720269815641,-422377.99670089,0.00052,120]
[331359069,1720269815693,-1000000.0,0.00052,120]
[331359070,1720269815744,-1000000.0,0.00052,120]
[331359071,1720269815794,-1000000.0,0.00052,120]
[331359072,1720269815845,-298.16460471,0.00052,60]
[331359073,1720269815896,-180.57058798,0.00052,120]
[331359074,1720269815948,-850.0,0.00052,120]
[331359075,1720269816000,-335.59074059,0.00052,120]
[331359076,1720269816049,-300000.0,0.00052,30]
[331359077,1720269816096,-2041.0,0.00052,30]
[331359078,1720269816147,-2041.0,0.00052,30]
[331359079,1720269816195,-2041.0,0.00052,30]
[331359080,1720269816337,-2041.0,0.00052,30]
[331359081,1720269816557,-2041.0,0.00052,30]
[331359082,1720269816608,-2041.0,0.00052,30]
[331359083,1720269816659,-2041.0,0.00052,30]
[331359084,1720269816707,-2041.0,0.00052,30]
[331359085,1720269816756,-2041.0,0.00052,30]
[331359086,1720269816806,-2041.0,0.00052,30]
[331359087,1720269816855,-200.16065557,0.00052014,60]
[331359088,1720269816904,-4956.0,0.00052079,117]
[331359089,1720269816954,-151.0,0.00052082,120]
[331359090,1720269817004,-167.5,0.0005211,120]
[331359091,1720269817055,-150.95346768,0.00052408,60]
[331359092,1720269817103,-166.6666667,0.00052427,60]
[331359093,1720269817156,-1000000.0,0.000525,120]
[331359094,1720269817207,-1000000.0,0.000525,120]
[331359095,1720269817256,-10000.0,0.000525,120]
[331359096,1720269817308,-285.84457685,0.00052517,60]
[331359097,1720269817356,-200.16065557,0.00052595,60]
[331359098,1720269817403,-285.84457685,0.00052711,60]
[331359099,1720269817451,-7889.94584759,0.000528,120]
[331359100,1720269817500,-9956.16894719,0.000528,120]
[331359101,1720269817551,-167.5,0.00052822,120]
[331359102,1720269817598,-1013.34,0.00052905,64]
[331359103,1720269817647,-166.6666667,0.0005293,60]
[331359104,1720269817695,-1000.0,0.00052999,120]
[331359105,1720269817743,-218134.75933313,0.00053,120]
[331359106,1720269820749,-15779.0,0.0005,30]
[331359107,1720269820802,-150.0,0.00052,30]
[331359108,1720269820851,-1600.0,0.00052,30]
[331359109,1720269820902,-781865.24066687,0.00053,120]
[331359110,1720269820952,-1000.0,0.00053,120]
[331359111,1720269821673,-1000.0,0.00053,120]
[331359112,1720269821722,-1000.0,0.00053,120]
[331359113,1720269821770,-1000.0,0.00053,120]
[331359114,1720269821818,-1213.79,0.00053,120]
[331359115,1720269821866,-486.4529519,0.00053,120]
[331359116,1720269821916,-50000.0,0.00053,120]
[331359117,1720269821967,-20000.0,0.00053,30]
[331359118,1720269822019,-1000000.0,0.00053,120]
[331359119,1720269822069,-329.90511652,0.00053,120]
[331359120,1720269822122,-1003.49,0.00053,120]
[331359121,1720269822174,-173.0,0.00053007,120]
[331359122,1720269822226,-285.84457685,0.0005303,60]
[331359123,1720269822277,-61891.2656556,0.00053163,120]
[331359124,1720269822327,-150.0,0.00053248,120]
[331359125,1720269822378,-151.0,0.00053425,120]
[331359126,1720269822428,-200.16065557,0.0005349,60]
[331359127,1720269822480,-1000000.0,0.000535,120]
[331359128,1720269822530,-10000.0,0.000535,120]
[331359129,1720269822580,-167.5,0.00053534,120]
[331359130,1720269822632,-151.6998404,0.000536,40]
[331359131,1720269822680,-1000.0,0.000538,120]
[331359132,1720269822729,-1000.0,0.000538,120]
[331359133,1720269822779,-1000.0,0.000538,120]
[331359134,1720269822825,-1000.0,0.000538,120]
[331359135,1720269822873,-1000.0,0.000538,120]
[331359136,1720269822923,-1000.0,0.000538,120]
[331359137,1720269822973,-1000.0,0.000538,120]
[331359138,1720269823022,-1000.0,0.000538,120]
[331359139,1720269823078,-729.11,0.000538,120]
[331359140,1720269823131,-15000.0,0.000538,120]
[331359141,1720269823182,-1002.08,0.000538,120]
[331359142,1720269823237,-285.84457685,0.00053904,60]
[331359143,1720269823286,-67104.93193883,0.00053985,30]
[331359144,1720269823332,-119361.20554739,0.00053985,120]
[331359145,1720269823380,-4857.87391675,0.00053985,120]
[331359146,1720269823428,-4266.25094161,0.00053985,120]
[331359147,1720269823476,-88196.02833073,0.00053985,120]
[331359148,1720269823523,-4323.64279931,0.00053985,120]
[331359149,1720269823572,-1000.0,0.00053999,120]
[331359150,1720269823622,-50000.0,0.00054,54]
[331359151,1720269823671,-1000000.0,0.00054,120]
[331359152,1720269823719,-1000000.0,0.00054,120]
[331359153,1720269823773,-686274.68248482,0.00054,120]
[331359154,1720269824695,293.17616671,0.0002739,30]
[331359155,1720269828945,-620.78509686,0.00031,30]
[331359156,1720269829240,-900.0,0.00041806,30]
[331359157,1720269829290,-900.0,0.0004208,30]
[331359158,1720269829340,-700.0,0.0004208,30]
[331359159,1720269829390,-900.0,0.00042354,30]
[331359160,1720269829442,-900.0,0.00042628,30]
[331359161,1720269829492,-700.0,0.00042628,30]
[331359162,1720269829543,-900.0,0.00042902,30]
[331359163,1720269829600,-208.54471265,0.00053425,120]
[331359164,1720269829651,-313725.31751518,0.00054,120]
[331359165,1720269829714,-1000000.0,0.00054,120]
[331359166,1720269829776,-15000.0,0.00054,120]
[331359167,1720269829834,-750.0,0.00054,120]
[331359168,1720269829890,-1000000.0,0.00054,120]
[331359169,1720269829948,-1307.469423,0.00054,73]
[331359170,1720269830005,-157.0706,0.00054098,119]
[331359171,1720269830058,-15000.0,0.0005419,120]
[331359172,1720269830114,-157.0706,0.00054198,119]
[331359173,1720269830166,-176.90124829,0.0005421,120]
[331359174,1720269830216,-1560.19,0.00054246,120]
[331359175,1720269830267,-1560.19,0.00054246,120]
[331359176,1720269830316,-1560.19,0.00054246,120]
[331359177,1720269830365,-1560.19,0.00054246,120]
[331359178,1720269830414,-1560.19,0.00054246,120]
[331359179,1720269830467,-1560.19,0.00054246,120]
[331359180,1720269830516,-1560.19,0.00054246,120]
[331359181,1720269830565,-1560.19,0.00054246,120]
[331359182,1720269830615,-1560.19,0.00054246,120]
[331359183,1720269830670,-1560.19,0.00054246,120]
[331359184,1720269830719,-1560.19,0.00054246,120]
[331359185,1720269830769,-1560.19,0.00054246,120]
[331359186,1720269830817,-1560.19,0.00054246,120]
[331359187,1720269830865,-1560.19,0.00054246,120]
[331359188,1720269830914,-1560.19,0.00054246,120]
[331359189,1720269830963,-1560.19,0.00054246,120]
[331359190,1720269831012,-1560.19,0.00054246,120]
[331359191,1720269831063,-1560.19,0.00054246,120]
[331359192,1720269831117,-1560.19,0.00054246,120]
[331359193,1720269831167,-1560.19,0.00054246,120]
[331359194,1720269831217,-1560.19,0.00054246,120]
[331359195,1720269831266,-1560.19,0.00054246,120]
[331359196,1720269831318,-1560.19,0.00054246,120]
[331359197,1720269831368,-1560.28543438,0.00054246,120]
[331359198,1720269831416,-167.5,0.00054247,120]
[331359199,1720269831463,-200.16065557,0.00054271,60]
[331359200,1720269831512,-157.0706,0.00054298,119]
[331359201,1720269831560,-1081.09273046,0.00054321,82]
[331359202,1720269831609,-152.25519541,0.00054395,60]
[331359203,1720269831661,-1000.0,0.000544,120]
[331359204,1720269831710,-285.84457685,0.00054487,60]
[331359205,1720269831761,-157.90333251,0.00054498,119]
[331359206,1720269831809,-1000000.0,0.000545,120]
[331359207,1720269831856,-10000.0,0.000545,120]
[331359208,1720269831904,-444.953186,0.000545,30]
[331359209,1720269831951,-177.981274,0.000545,30]
[331359210,1720269832002,-285.8445769,0.00054501,60]
[331359211,1720269832053,-1056.17403968,0.00054512,60]
[331359212,1720269832106,-150.0,0.0005457,30]
[331359213,1720269832156,-2309.61449621,0.00054678,30]
[331359214,1720269832408,-151.0,0.00054767,120]
[331359215,1720269832456,-1000.0,0.00054794,120]
[331359216,1720269832503,-797.73861272,0.00054794,120]
[331359217,1720269832551,-1280.03,0.00054794,120]
[331359218,1720269832599,-3000.0,0.00054794,120]
[331359219,1720269832648,-2751.35934874,0.00054794,120]
[331359220,1720269832696,-3229.58,0.00054794,120]
[331359221,1720269832744,-500.0,0.00054794,30]
[331359222,1720269832793,-500.0,0.00054794,30]
[331359223,1720269832841,-500.0,0.00054794,30]
[331359224,1720269832890,-587.47239921,0.00054794,30]
[331359225,1720269832937,-177.23861827,0.00054794,120]
[331359226,1720269832984,-1000.0,0.000548,120]
[331359227,1720269833032,-1000.0,0.000548,120]
[331359228,1720269833082,-1280.03,0.00054821,120]
[331359229,1720269833128,-1280.03,0.00054849,120]
[331359230,1720269833176,-1280.03,0.00054876,120]
[331359231,1720269833224,-1280.03,0.00054904,120]
[331359232,1720269833272,-1280.03,0.00054931,120]
[331359233,1720269833319,-1280.03,0.00054958,120]
[331359234,1720269833367,-167.5,0.00054959,120]
[331359235,1720269833415,-1280.03,0.00054986,120]
[331359236,1720269833464,-2700.95666045,0.00054989,70]
[331359237,1720269833511,-164.718,0.00054995,120]
[331359238,1720269833559,-220.189,0.00054995,120]
[331359239,1720269833607,-159.224,0.00054995,120]
[331359240,1720269833659,-220.189,0.00054995,120]
[331359241,1720269833709,-159.223,0.00054995,120]
[331359242,1720269833756,-164.718,0.00054995,120]
[331359243,1720269833806,-159.223,0.00054995,120]
[331359244,1720269833854,-220.19,0.00054995,120]
[331359245,1720269833902,-220.189,0.00054995,120]
[331359246,1720269833952,-159.223,0.00054995,120]
[331359247,1720269834000,-220.189,0.00054995,120]
[331359248,1720269834049,-159.223,0.00054995,120]
[331359249,1720269834101,-1000.0,0.00054999,120]
[331359250,1720269834151,-1000000.0,0.00055,120]
[331359251,1720269834201,-288.41772404,0.00055,31]
[331359252,1720269834250,-208.19520556,0.00055,120]
[331359253,1720269834300,-403.02971704,0.00055,120]
[331359254,1720269834351,-1000000.0,0.00055,120]
[331359255,1720269834399,-850.0,0.00055,120]
[331359256,1720269834448,-542.83827896,0.00055,120]
[331359257,1720269834497,-941.22352981,0.00055,30]
[331359258,1720269834545,-1793.19370625,0.00055,30]
[331359259,1720269834594,-158.5833908,0.00055,120]
[331359260,1720269834644,-1174.44638639,0.00055,60]
[331359261,1720269834696,-327.582986,0.00055,100]
[331359262,1720269834749,-1280.03,0.00055013,120]
[331359263,1720269834801,-1280.03,0.00055041,120]
[331359264,1720269834853,-1280.03,0.00055068,120]
[331359265,1720269834907,-3229.58,0.00055068,120]
[331359266,1720269834958,-1280.03,0.00055095,120]
[331359267,1720269835011,-1280.03,0.00055123,120]
[331359268,1720269835061,-1280.03,0.0005515,120]
[331359269,1720269835110,-1280.03,0.00055178,120]
[331359270,1720269835160,-1280.03,0.00055205,120]
[331359271,1720269835209,-1280.03,0.00055232,120]
[331359272,1720269835258,-1280.03,0.0005526,120]
[331359273,1720269835308,-1280.03,0.00055287,120]
[331359274,1720269835357,-1280.03,0.00055315,120]
[331359275,1720269835408,-1280.03,0.00055342,120]
[331359276,1720269835459,-3229.58,0.00055342,120]
[331359277,1720269835509,-1280.03,0.00055369,120]
[331359278,1720269835560,-1280.03,0.00055397,120]
[331359279,1720269835609,-173.070615,0.00055398,119]
[331359280,1720269835662,-1280.09876926,0.00055424,120]
[331359281,1720269835711,-10000.0,0.000555,120]
[331359282,1720269835763,-3229.58,0.00055616,120]
[331359283,1720269835813,-1250.01,0.00055616,120]
[331359284,1720269835863,-167.5,0.00055671,120]
[331359285,1720269835914,-3229.58,0.0005589,120]
[331359286,1720269835965,-1000.0,0.00055999,120]
[331359287,1720269836016,-50000.0,0.00056,56]
[331359288,1720269836066,-457719.24675755,0.00056,120]
[331359289,1720269852948,-326.29758183,0.00030303,30]
[331359290,1720269853210,-700.0,0.00043176,30]
[331359291,1720269853259,-900.0,0.0004345,30]
[331359292,1720269853309,-700.0,0.00043724,30]
[331359293,1720269853357,-900.0,0.00043998,30]
[331359294,1720269853405,-700.0,0.00044272,30]
[331359295,1720269853452,-900.0,0.00044546,30]
[331359296,1720269853497,-700.0,0.0004482,30]
[331359297,1720269853546,-900.0,0.00045094,30]
[331359298,1720269853590,-700.0,0.00045368,30]
[331359299,1720269853637,-900.0,0.00045642,30]
[331359300,1720269853684,-659.98303726,0.00045916,30]
[331359301,1720269853733,-900.0,0.0004619,30]
[331359302,1720269853780,-900.0,0.00046738,30]
[331359303,1720269853828,-900.0,0.00047286,30]
[331359304,1720269853878,-701.73973844,0.00047834,30]
[331359305,1720269853932,-8562.0,0.00051,120]
[331359306,1720269853983,-11485.0,0.000517,120]
[331359307,1720269854030,-11485.0,0.000524,120]
[331359308,1720269854083,-542280.75324245,0.00056,120]
[331359309,1720269854131,-650.0,0.00056,120]
[331359310,1720269854178,-50000.0,0.00056,120]
[331359311,1720269854224,-286.90967189,0.00056,120]
[331359312,1720269854273,-1600.0,0.00056,120]
[331359313,1720269854320,-150.0,0.00056,30]
[331359314,1720269854368,-1027.0106265,0.00056016,120]
[331359315,1720269854420,-151.0,0.0005611,120]
[331359316,1720269854473,-500.0,0.00056154,120]
[331359317,1720269854526,-3229.58,0.00056164,120]
[331359318,1720269854579,-152.0,0.00056347,120]
[331359319,1720269854630,-167.5,0.00056384,120]
[331359320,1720269854683,-3229.58,0.00056438,120]
[331359321,1720269854734,-1000000.0,0.000565,120]
[331359322,1720269854786,-10000.0,0.000565,120]
[331359323,1720269854839,-3229.58,0.00056712,120]
[331359324,1720269854886,-259.0,0.000568,120]
[331359325,1720269854936,-3229.58,0.00056986,120]
[331359326,1720269854986,-1000.0,0.00056999,120]
[331359327,1720269855036,-1000000.0,0.00057,120]
[331359328,1720269855091,-167.5,0.00057096,120]
[331359329,1720269855138,-200.0,0.00057154,120]
[331359330,1720269855188,-3229.58,0.0005726,120]
[331359331,1720269855237,-151.0,0.00057452,120]
[331359332,1720269855287,-1000000.0,0.000575,120]
[331359333,1720269855336,-10000.0,0.000575,120]
[331359334,1720269855386,-1000000.0,0.000575,120]
[331359335,1720269855435,-3229.58,0.00057534,120]
[331359336,1720269855483,-5369.0,0.00057768,117]
[331359337,1720269855532,-3229.58,0.00057808,120]
[331359338,1720269855580,-167.5,0.00057808,120]
[331359339,1720269855626,-1000.0,0.00057999,120]
[331359340,1720269855678,-50000.0,0.00058,58]
[331359341,1720269855726,-1000000.0,0.00058,120]
[331359342,1720269855775,-550.0,0.00058,120]
[331359343,1720269855824,-10000.0,0.00058,120]
[331359344,1720269855873,-645.15545013,0.00058,120]
[331359345,1720269855923,-9089.0,0.00058,120]
[331359346,1720269855975,-3229.58,0.00058082,120]
[331359347,1720269856026,-3229.58,0.00058356,120]
[331359348,1720269856075,-231450.4306515,0.000585,120]
[331359349,1720269861505,-12726.86773942,0.00041,30]
[331359350,1720269861564,-768549.5693485,0.000585,120]
[331359351,1720269861612,-10000.0,0.000585,120]
[331359352,1720269861667,-167.5,0.00058521,120]
[331359353,1720269861717,-3229.58,0.0005863,120]
[331359354,1720269861769,-51631.0,0.0005877,120]
[331359355,1720269861816,-151.0,0.00058795,120]
[331359356,1720269861863,-143330.9358274,0.0005888,30]
[331359357,1720269861912,-3229.58,0.00058904,120]
[331359358,1720269861962,-1000.0,0.00058999,120]
[331359359,1720269862011,-10030.84937366,0.00059,120]
[331359360,1720269862057,-396.82926417,0.00059,120]
[331359361,1720269862102,-245142.23195715,0.00059,30]
[331359362,1720269862148,-1000000.0,0.00059,120]
[331359363,1720269862194,-50000.0,0.00059,120]
[331359364,1720269862238,-10000.0,0.00059,120]
[331359365,1720269862494,-50000.0,0.00059,60]
[331359366,1720269862539,-256.66151296,0.00059,120]
[331359367,1720269862588,-2000.0,0.00059,30]
[331359368,1720269862636,-2000.0,0.00059,30]
[331359369,1720269862688,-2000.0,0.00059,30]
[331359370,1720269862737,-2000.0,0.00059,30]
[331359371,1720269862786,-2000.0,0.00059,30]
[331359372,1720269862833,-850.0,0.00059,120]
[331359373,1720269862880,-10000.0,0.00059,120]
[331359374,1720269862930,-911001.54511349,0.00059,30]
[331359375,1720269862978,-2000.0,0.00059,30]
[331359376,1720269863027,-1270.0785,0.00059,30]
[331359377,1720269863079,-3229.58,0.00059178,120]
[331359378,1720269863130,-167.5,0.00059233,120]
[331359379,1720269863179,-3229.58,0.00059452,120]
[331359380,1720269863226,-10000.0,0.000595,120]
[331359381,1720269863275,-20000.0,0.0005953,30]
[331359382,1720269863328,-3229.58,0.00059726,120]
[331359383,1720269863376,-210.9416993,0.00059791,120]
[331359384,1720269863424,-167.5,0.00059945,120]
[331359385,1720269863472,-1703225.0,0.00059998,120]
[331359386,1720269863522,-2048.54903886,0.00059998,30]
[331359387,1720269863571,-1000.0,0.00059999,120]
[331359388,1720269863622,-3229.58,0.00059999,120]
[331359389,1720269863678,-50000.0,0.0006,60]
[331359390,1720269863728,-1000.0,0.0006,120]
[331359391,1720269863780,-904297.96062509,0.0006,120]
[331359392,1720269868102,-932.5498,0.00045888,30]
[331359393,1720269868156,-3660.13,0.00057,120]
[331359394,1720269868204,-95702.03937491,0.0006,120]
[331359395,1720269868252,-27573.73,0.0006,60]
[331359396,1720269868301,-355.0,0.0006,120]
[331359397,1720269868348,-1510.0,0.0006,120]
[331359398,1720269868395,-360.0,0.0006,30]
[331359399,1720269868445,-150.0,0.0006,120]
[331359400,1720269868494,-450.0,0.0006,120]
[331359401,1720269868541,-50000.0,0.0006,120]
[331359402,1720269868587,-1000.0,0.0006,120]
[331359403,1720269868638,-897.87907835,0.0006,120]
[331359404,1720269868693,-1379.92438592,0.0006,120]
[331359405,1720269868739,-1496.64781529,0.0006,120]
[331359406,1720269868785,-8621.56991125,0.0006,30]
[331359407,1720269868833,-251451.0,0.0006,120]
[331359408,1720269868880,-550.0,0.0006,120]
[331359409,1720269868927,-2022.4053691,0.0006,30]
[331359410,1720269868975,-192.84617938,0.0006,120]
[331359411,1720269869024,-196.0,0.0006,120]
[331359412,1720269869071,-302.5049531,0.0006,120]
[331359413,1720269869120,-834.25482884,0.0006,120]
[331359414,1720269869171,-150.0,0.0006,120]
[331359415,1720269869219,-2251.07,0.0006,120]
[331359416,1720269869265,-1101.79035064,0.0006,120]
[331359417,1720269869312,-412876.23803379,0.0006,120]
[331359418,1720269869358,-5808.28203714,0.0006,120]
[331359419,1720269869404,-150.0,0.0006,120]
[331359420,1720269869451,-624.79,0.0006,120]
[331359421,1720269869498,-873.07810093,0.0006,120]
[331359422,1720269869548,-17325.38068412,0.0006,30]
[331359423,1720269869598,-12622.84989311,0.0006,77]
[331359424,1720269870608,-1713.0,0.0006,120]
[331359425,1720269870658,-150.0,0.0006,30]
[331359426,1720269870709,-1600.0,0.0006,120]
[331359427,1720269870757,-151.0,0.00060137,120]
[331359428,1720269870806,-3229.58,0.00060273,120]
[331359429,1720269870854,-437.97817173,0.00060273,120]
[331359430,1720269870905,-3044.74,0.00060274,120]
[331359431,1720269870956,-384.30552943,0.000603,120]
[331359432,1720269871005,-10000.0,0.000605,120]
[331359433,1720269871058,-3229.58,0.00060547,120]
[331359434,1720269871108,-167.5,0.00060658,120]
[331359435,1720269871160,-3229.58,0.00060821,120]
[331359436,1720269871208,-1000.0,0.00060999,120]
[331359437,1720269871257,-50000.0,0.00061,120]
[331359438,1720269871306,-1000.0,0.00061,120]
[331359439,1720269871359,-3229.67739696,0.00061095,120]
[331359440,1720269871408,-10000.0,0.000611,120]
[331359441,1720269871456,-150000.0,0.000611,120]
[331359442,1720269871505,-150.0,0.00061272,120]
[331359443,1720269871553,-167.5,0.0006137,120]
[331359444,1720269871601,-151.0,0.00061479,120]
[331359445,1720269871650,-1000000.0,0.000618,120]
[331359446,1720269871698,-401.7403758,0.000619,30]
[331359447,1720269871744,-721171.55918397,0.00061918,120]
[331359448,1720269871790,-816.29413739,0.00061918,120]
[331359449,1720269871843,-1000.0,0.00061999,120]
[331359450,1720269871897,-400.0,0.00062,120]
[331359451,1720269871948,-386.9064286,0.00062,120]
[331359452,1720269872002,-167.5,0.00062082,120]
[331359453,1720269872056,-10000.0,0.000622,120]
[331359454,1720269873354,-33615.99403716,0.000624,120]
[331359455,1720269873405,-167.5,0.00062795,120]
[331359456,1720269873457,-151.0,0.00062822,120]
[331359457,1720269873508,-205.0,0.000629,120]
[331359458,1720269873557,-6320.0400242,0.000629,60]
[331359459,1720269873604,-1000.0,0.00062999,120]
[331359460,1720269873653,-150.0,0.00063,120]
[331359461,1720269873702,-10000.0,0.00063,120]
[331359462,1720269873751,-4000.00000373,0.00063,120]
[331359463,1720269873806,-500.0,0.00063,120]
[331359464,1720269873858,-217.23490041,0.00063,120]
[331359465,1720269873910,-300.0,0.00063013,32]
[331359466,1720269873961,-5782.0,0.00063457,117]
[331359467,1720269874012,-167.5,0.00063507,120]
[331359468,1720269874063,-583.53124526,0.00063616,120]
[331359469,1720269874113,-282.1055588,0.00063617,120]
[331359470,1720269874166,-527.35300423,0.00063621,120]
[331359471,1720269874217,-1397.47913103,0.00063622,120]
[331359472,1720269874268,-527.35300423,0.00063622,120]
[331359473,1720269874318,-337.08399599,0.00063623,120]
[331359474,1720269874368,-282.1055588,0.00063626,120]
[331359475,1720269874417,-583.53124526,0.00063627,120]
[331359476,1720269874466,-230.0230628,0.00063627,120]
[331359477,1720269874518,-282.1055588,0.00063627,120]
[331359478,1720269874570,-1084.93590005,0.00063629,120]
[331359479,1720269874623,-230.0230628,0.0006363,120]
[331359480,1720269874683,-230.0230628,0.0006363,120]
[331359481,1720269874740,-527.35300423,0.0006363,120]
[331359482,1720269874796,-337.08399599,0.0006363,120]
[331359483,1720269874854,-583.53124526,0.00063631,120]
[331359484,1720269874907,-337.08399599,0.00063633,120]
[331359485,1720269874960,-270.70956546,0.00063633,120]
[331359486,1720269875013,-337.08399599,0.00063634,120]
[331359487,1720269875237,-1084.93590005,0.00063635,120]
[331359488,1720269875291,-1397.47913103,0.00063635,120]
[331359489,1720269875343,-270.70956546,0.00063637,120]
[331359490,1720269875398,-230.0230628,0.00063637,120]